Workbook

Sheet COVER
C3: =UPPER(Lists!K3) -> STATISTICAL OFFICE OF THE EUROPEAN UNION
C5: =Lists!K4 -> Directorate E: Sectoral and regional statistics
C6: =Lists!K5 -> Unit E-2: Environmental statistics and accounts; sustainable development
C7: =UPPER(Lists!K7) -> ECOSYSTEM EXTENT ACCOUNTS
C8: =CONCATENATE(Lists!K8," DATA COLLECTION") -> 2024 DATA COLLECTION
C9: =CONCATENATE("Launching date: ",Lists!K9) -> Launching date: 19 December 2024

Sheet METADATA_Output data
E3: STATISTICAL OFFICE OF THE EUROPEAN UNION
D4: ECOSYSTEM EXTENT ACCOUNTS
D6: Most headings contain additional instructions for filling requested information. These are shown after clicking on the heading.
D7: METADATA (A)
D8: Output data
D9: Minimum Mapping Unit | E9: example: - 1 ha - 1 ha for urban ecosystem; MMU = 10 ha for the other ecosystems - 1 ha for L1 ecosysrtems; 0.5 ha - for level 2 ecosystems
D10: Treatment of linear features | E10: examples: - geographic features, such as roads and rivers, wider than the target MMW and represented as lines in the input dataset are converted to polygons through the application of buffer. They are shown as polygon features and their area accounted for, accordingly - input data did not contain features represented as lines [e.g. in case of CLC] - individual mapped linear features are incorporated within the spatial unit representing the surrounding ecosystem asset (i.e. linear features not considered as separate assets)
D11: Minimum Mapping Width | E11: example: 50 m
D12: Coordinate reference system of the reported extent accounts | E12: European system ETRS89-LAEA (EPSG:3035)
D13: Spatial accuracy | E13: example: 5 m, assessed using aerial orthophotographs and a random selection of 100 checkpoints as a reference. Expressed as Root Mean Square Error (RMSE)
D14: Classification accuracy (% correctly classified areas in validation set based on reference points) for each level 1 ecosystem type separately | E14: [also referred to as 'thematic accuracy'] example: - Forest and woodland - 85% - Grassland, Cropland, Heathland - 80%, etc. Calculated and express as Overal Accuracy (OA)
D15: Temporal coherence - reference year(s) of source data | E15: example: - all source data are from reference year [yyyy-yyyy], see METADATA Source for detail - main input layers from reference year yyyy, data inputs x and z are from year yyyy
D16: Threshold applied to record ecosystem conversion between reference years | E16: example: 0.1 ha
D17: Workflow for ecosystem classification | E17: example: - dataset [xxxx] was used as basis, thematic national layers [xxxx, zzzz, etc] were overlaid in the following order [1, 2, 3, etc], prioritizing layers for the most recent reference years, - detailed workflow [description/code] is available at: [include public hyperlink] in English [other language]
D18: Method to calculate representative averages of ecosystem extent per ecosystem type | E18: example: data reflect situation during growing seasons of respective reference years
D19: Length of comparable time series | E19: example: - data for 2021 and 2024 are comparable - break in time series in 2021 [i.e. data before 2021 are not comparable with data for 2021 and later] due to change in method [xxxx, key points on method change to be provided]
D20: Spatial coverage | E20: example: the entire national territory covered
D21: Plausibility checks applied | E21: example: - comparison of level 1 aggregates with [dataset xxxx, statistics xxxx] - time-series comparison of extent accounts for reference years yyyy1 and yyyy2
D22: Other methodological notes | E22: example: - public hyperlink to national methodological reports on ecosystem extent accounts - public hyperlink to published national map of ecosystem types

Sheet METADATA_Sources
E3: STATISTICAL OFFICE OF THE EUROPEAN UNION
D4: ECOSYSTEM EXTENT ACCOUNTS
D6: Most headings contain additional instructions for filling requested information. These are shown after clicking on the heading.
D7: METADATA (B1)
D8: Source data - characteristics
D9: Source dataset name | E9: Link to INSPIRE documentation | F9: OR: | G9: Dataset type (raster or vector; area, linear, point) | H9: Dataset status (e.g. official data, provisional data, national/international; private, research data) | I9: Minimum mapping unit | J9: Minimum mapping width | K9: Reference year of source dataset | L9: Dataset frequency | M9: Classification used | N9: Other metadata information
C10: 1 | D10: example: National Topographic Map | G10: vector | H10: official national data | I10: 1 ha | J10: 50 m | K10: 2010 | L10: irregular | M10: NA | N10: hyperlink to dataset/further documentation
C11: 2 | D11: example: Digital Terrain Model/Digital Elevation Model | G11: raster | H11: official national data | I11: 10 m | J11: NA | K11: 2010 | L11: constant/stable | M11: NA | N11: Vertical resolution of 1 meter hyperlink to dataset/further documentation
C12: 3 | D12: example: Water Framework Directive - surface water bodies | G12: vector | H12: official national data | K12: 2019-2024 | L12: 6 years | N12: hyperlink to dataset/further documentation
C13: 4 | D13: example: Small Woody Features (Copernicus HRL) | G13: raster | H13: official EU data | I13: 5 m | K13: 2018 | L13: 3 years | M13: see EEA documentation | N13: hyperlink to dataset/further documentation
C14: 5 | D14: example: National Forest Registry | G14: vector | H14: offical national data | I14: 0.5 ha | J14: not assessed | K14: 2020 | L14: annual | M14: NA | N14: hyperlink to dataset/further documentation
C15: 6 | D15: example: Natura 2000 habitats (Annex I) | E15: https://inspire-geoportal.ec.europa.eu/srv/eng/catalog.search#/overview?view=themeOverview&theme=hb | G15: vector | H15: offical national data | I15: 0.1 ha | K15: 2021 | L15: 3 years | M15: Natura 2000/EUNIS | N15: hyperlink to dataset/further documentation
C16: 7 | D16: example: Greenhouses Spatial Mask (EEA) | G16: raster | H16: EU data | I16: 100 m | K16: 2018 | L16: irregular | M16: NA | N16: hyperlink to dataset/further documentation
C17: 8 | D17: example: National Soil Map | G17: vector | H17: official national data | I17: 1 ha | J17: 20 m | K17: 2021 | L17: 3-yearly | M17: national soil classification | N17: hyperlink to dataset/further documentation
C18: 9 | D18: example: National Cadaster Map | G18: vector | H18: official national data | I18: 0.1 ha | J18: 2 m | K18: 2021 | L18: annual | M18: national land parcel classification | N18: hyperlink to dataset/further documentation
C19: 10 | D19: type name here
C20: 11 | D20: type name here
C21: 12 | D21: type name here
C22: 13 | D22: type name here
C23: 14 | D23: type name here
C24: 15 | D24: type name here
D26: AND (if reporting ecosystem types at level 2):
D28: METADATA (B2)
D29: Source data - mapping to EU ecosystem typology
D30: EU ecosystem type - level 2 | E30: Name of source dataset (from Metadata B1) | F30: AND: | G30: Name/code of corresponding class(es) in the source dataset
D31: 1.5 Other artificial areas | E31: National Cadaster Map | G31: land parcel types: xx1, xx2, etc
D32: 2.6 Other farmland
D33: 4.1 Broadleaved deciduous forest | E33: example: National Forest Registry | G33: xxxx
D34: 4.3 Broadleaved evergreen forest | E34: example: not reported
D35: 4.6 Plantations
D36: 5.1 Tundra | E36: example: not applicable (NA)
D37: 8.1 Rivers | E37: example: Water Framework Directive
D38: 8.2 Canals, ditches, and drains
D39: 9.1 Lakes
D40: 9.2 Artificial reservoirs | E40: example: National Topographic Map | G40: NA
D41: 9.3 Geothermal pools and wetlands | E41: example: Natura 2000 habitats, National Soil Map | G41: habitat codes: xxx, xxz, etc.
D42: 11.1 Artificial shorelines
D43: 11.2 Coastal dunes, beaches and sandy and muddy shores
D44: 11.3 Rocky shores

Sheet Lists (hidden)
A1: Country label | B1: Country code | C1: Currency | D1: Valid flags (obs_status) | E1: Label | G1: Valid flags (obs_conf) | H1: Label | J1: Textual variables | K1: String | M1: TEST
A2: Belgium | B2: BE | C2: EUR | D2: B | E2: break in time series | G2: C | H2: confidential | J2: Institutional names
A3: Bulgaria | B3: BG | C3: BGN | D3: E | E3: estimated data | G3: D | H3: secondary confidentiality set by the sender | J3: Eurostat Text | K3: Statistical Office of the European Union
A4: Czechia | B4: CZ | C4: CZK | D4: P | E4: provisional | J4: Directorate Text | K4: Directorate E: Sectoral and regional statistics
A5: Denmark | B5: DK | C5: DKK | D5: BE | J5: Unit Text | K5: Unit E-2: Environmental statistics and accounts; sustainable development
A6: Germany | B6: DE | C6: EUR | D6: BP | J6: Data collection information
A7: Estonia | B7: EE | C7: EUR | D7: EP | J7: Data Collection Title | K7: Ecosystem Extent Accounts
A8: Ireland | B8: IE | C8: EUR | D8: BEP | J8: Data Collection Year | K8: 2024
A9: Greece | B9: EL | C9: EUR | J9: Launching date | K9: 19 December 2024
A10: Spain | B10: ES | C10: EUR | J10: Submission deadline | K10: 30 April 2025
A11: France | B11: FR | C11: EUR | J11: EDAMIS data
A12: Croatia | B12: HR | C12: EUR | J12: Domain name | K12: ENVDATA
A13: Italy | B13: IT | C13: EUR | J13: Dataset name | K13: ENVDATA_ECOEXT_3
A14: Cyprus | B14: CY | C14: EUR | J14: Web page | K14: https://cros.ec.europa.eu/book-page/national-transmission-coordinators
A15: Latvia | B15: LV | C15: EUR | J15: Functional e-mail | K15: ESTAT-DATA-METADATA-SERVICES@ec.europa.eu
A16: Lithuania | B16: LT | C16: EUR | J16: E2 information
A17: Luxembourg | B17: LU | C17: EUR | J17: Telephone | K17: (+352) 4301 33213
A18: Hungary | B18: HU | C18: HUF | J18: Contact | K18: ESTAT-ECOSYSTEMS@EC.EUROPA.EU
A19: Malta | B19: MT | C19: EUR | J19: Methodology URL | K19: https://ec.europa.eu/eurostat/web/environment/methodology
A20: Netherlands | B20: NL | C20: EUR | J20: Legislation URL | K20: NA
A21: Austria | B21: AT | C21: EUR
A22: Poland | B22: PL | C22: PLN
A23: Portugal | B23: PT | C23: EUR
A24: Romania | B24: RO | C24: RON
A25: Slovenia | B25: SI | C25: EUR
A26: Slovakia | B26: SK | C26: EUR
A27: Finland | B27: FI | C27: EUR
A28: Sweden | B28: SE | C28: SEK
A29: United Kingdom | B29: UK | C29: GBP
A30: Iceland | B30: IS | C30: ISK
A31: Liechtenstein | B31: LI | C31: CHF
A32: Norway | B32: NO | C32: NOK
A33: Switzerland | B33: CH | C33: CHF
A34: Montenegro | B34: ME | C34: EUR
A35: North Macedonia | B35: MK | C35: MKD
A36: Albania | B36: AL | C36: ALL
A37: Serbia | B37: RS | C37: RSD
A38: Turkey | B38: TR | C38: TRY
A39: Bosnia and Herzegovina | B39: BA | C39: BAM
A40: Kosovo (UNSCR 1244) | B40: XK | C40: EUR

Sheet MacroBehaviour (hidden)
A1: COMMON TO ALL (OR MOST) QUESTIONNAIRE | E1: SPECIFIC TO THIS QUESTIONNAIRE
A2: Parameter | B2: Value | C2: (Valid values) | E2: Parameter | F2: Value | G2: (Valid values)
A3: DevelopementMode | B3: FALSE | C3: TRUE (during development) FALSE (For real reporting and testing)

Sheet Specific Lists (hidden)
A1: TYPES OF PERIODS | D1: LOOKUP COLUMN | G1: CLOSING AT END OF YEAR | H1: OPENING AT START OF YEAR
A2: Text | B2: Code | D2: Period type code | E2: column number | H2: (annual - A) | I2: (3-years - A3)
A3: Annual | B3: A | D3: A | E3: 2 | G3: 2000 | H3: =G3-1 -> 1999 | I3: Invalid closing year
A4: 3-years | B4: A3 | D4: A3 | E4: 3 | G4: 2001 | H4: =G4-1 -> 2000 | I4: Invalid closing year
G5: 2002 | H5: 2001 | I5: Invalid closing year
G6: 2003 | H6: 2002 | I6: Invalid closing year
G7: 2004 | H7: 2003 | I7: Invalid closing year
G8: 2005 | H8: 2004 | I8: Invalid closing year
G9: 2006 | H9: 2005 | I9: Invalid closing year
G10: 2007 | H10: 2006 | I10: Invalid closing year
G11: 2008 | H11: 2007 | I11: Invalid closing year
G12: 2009 | H12: 2008 | I12: Invalid closing year
G13: 2010 | H13: 2009 | I13: Invalid closing year
G14: 2011 | H14: 2010 | I14: Invalid closing year
G15: 2012 | H15: 2011 | I15: Invalid closing year
G16: 2013 | H16: 2012 | I16: Invalid closing year
G17: 2014 | H17: 2013 | I17: Invalid closing year
G18: 2015 | H18: 2014 | I18: 2012
G19: 2016 | H19: 2015 | I19: Invalid closing year
G20: 2017 | H20: 2016 | I20: Invalid closing year
G21: 2018 | H21: 2017 | I21: 2015
G22: 2019 | H22: 2018 | I22: Invalid closing year
G23: 2020 | H23: 2019 | I23: =IF(AND(G23>=2018,MOD(G23,3)=0),G23-2,"Invalid closing year") -> Invalid closing year
G24: 2021 | H24: 2020 | I24: =G24-3 -> 2018
G25: 2022 | H25: 2021 | I25: Invalid closing year
G26: 2023 | H26: 2022 | I26: Invalid closing year
G27: 2024 | H27: 2023 | I27: =G27-3 -> 2021
G28: 2025 | H28: 2024 | I28: Invalid closing year
G29: 2026 | H29: 2025 | I29: Invalid closing year
G30: 2027 | H30: 2026 | I30: =G30-4 -> 2023
G31: 2028 | H31: 2027 | I31: Invalid closing year
G32: 2029 | H32: 2028 | I32: Invalid closing year
G33: 2030 | H33: 2029 | I33: =G33-3 -> 2027
G34: 2031 | H34: 2030 | I34: Invalid closing year
G35: 2032 | H35: 2031 | I35: Invalid closing year
G36: 2033 | H36: 2032 | I36: =G36-3 -> 2030
G37: 2034 | H37: 2033 | I37: Invalid closing year
G38: 2035 | H38: 2034 | I38: Invalid closing year
G39: 2036 | H39: 2035 | I39: =G39-3 -> 2033
G40: 2037 | H40: 2036 | I40: Invalid closing year
G41: 2038 | H41: 2037 | I41: Invalid closing year
G42: 2039 | H42: 2038 | I42: =G42-3 -> 2036
G43: 2040 | H43: 2039 | I43: Invalid closing year
G44: 2041 | H44: 2040 | I44: Invalid closing year
G45: 2042 | H45: 2041 | I45: =G45-3 -> 2039
G46: 2043 | H46: 2042 | I46: Invalid closing year
G47: 2044 | H47: 2043 | I47: Invalid closing year
G48: 2045 | H48: 2044 | I48: =G48-3 -> 2042
G49: 2046 | H49: 2045 | I49: Invalid closing year
G50: 2047 | H50: 2046 | I50: Invalid closing year
G51: 2048 | H51: 2047 | I51: =G51-3 -> 2045
G52: 2049 | H52: 2048 | I52: Invalid closing year
G53: 2050 | H53: 2049 | I53: Invalid closing year
G54: 2051 | H54: 2050 | I54: =G54-3 -> 2048
G55: 2052 | H55: 2051 | I55: Invalid closing year
G56: 2053 | H56: 2052 | I56: Invalid closing year
G57: 2054 | H57: 2053 | I57: =G57-3 -> 2051
G58: 2055 | H58: 2054 | I58: Invalid closing year
G59: 2056 | H59: 2055 | I59: Invalid closing year
G60: 2057 | H60: 2056 | I60: =G60-3 -> 2054
G61: 2058 | H61: 2057 | I61: Invalid closing year
G62: 2059 | H62: 2058 | I62: Invalid closing year
G63: 2060 | H63: 2059 | I63: =G63-3 -> 2057
G64: 2061 | H64: 2060 | I64: Invalid closing year
G65: 2062 | H65: 2061 | I65: Invalid closing year
G66: 2063 | H66: 2062 | I66: =G66-3 -> 2060
G67: 2064 | H67: 2063 | I67: Invalid closing year
G68: 2065 | H68: =G68-1 -> 2064 | I68: Invalid closing year
G69: 2066 | H69: 2065 | I69: =G69-3 -> 2063
G70: 2067 | H70: 2066 | I70: Invalid closing year
G71: 2068 | H71: 2067 | I71: =IF(AND(G71>=2018,MOD(G71,3)=0),G71-2,"Invalid closing year") -> Invalid closing year
G72: 2069 | H72: 2068 | I72: =G72-3 -> 2066
G73: 2070 | H73: 2069 | I73: Invalid closing year
G74: 2071 | H74: 2070 | I74: =IF(AND(G74>=2018,MOD(G74,3)=0),G74-2,"Invalid closing year") -> Invalid closing year
G75: 2072 | H75: 2071 | I75: =G75-3 -> 2069
G76: 2073 | H76: 2072 | I76: Invalid closing year
G77: 2074 | H77: 2073 | I77: =IF(AND(G77>=2018,MOD(G77,3)=0),G77-2,"Invalid closing year") -> Invalid closing year
G78: 2075 | H78: 2074 | I78: =G78-3 -> 2072
G79: 2076 | H79: 2075 | I79: Invalid closing year
G80: 2077 | H80: 2076 | I80: =IF(AND(G80>=2018,MOD(G80,3)=0),G80-2,"Invalid closing year") -> Invalid closing year
G81: 2078 | H81: 2077 | I81: =G81-3 -> 2075
G82: 2079 | H82: 2078 | I82: Invalid closing year
G83: 2080 | H83: 2079 | I83: =IF(AND(G83>=2018,MOD(G83,3)=0),G83-2,"Invalid closing year") -> Invalid closing year
G84: 2081 | H84: 2080 | I84: =G84-3 -> 2078
G85: 2082 | H85: 2081 | I85: Invalid closing year
G86: 2083 | H86: 2082 | I86: =IF(AND(G86>=2018,MOD(G86,3)=0),G86-2,"Invalid closing year") -> Invalid closing year
G87: 2084 | H87: 2083 | I87: =G87-3 -> 2081
G88: 2085 | H88: 2084 | I88: Invalid closing year
G89: 2086 | H89: 2085 | I89: =IF(AND(G89>=2018,MOD(G89,3)=0),G89-2,"Invalid closing year") -> Invalid closing year
G90: 2087 | H90: 2086 | I90: =G90-3 -> 2084
G91: 2088 | H91: 2087 | I91: Invalid closing year
G92: 2089 | H92: 2088 | I92: =IF(AND(G92>=2018,MOD(G92,3)=0),G92-2,"Invalid closing year") -> Invalid closing year
G93: 2090 | H93: 2089 | I93: =G93-3 -> 2087
G94: 2091 | H94: 2090 | I94: Invalid closing year
G95: 2092 | H95: 2091 | I95: =IF(AND(G95>=2018,MOD(G95,3)=0),G95-2,"Invalid closing year") -> Invalid closing year
G96: 2093 | H96: 2092 | I96: =G96-3 -> 2090
G97: 2094 | H97: 2093 | I97: Invalid closing year
G98: 2095 | H98: 2094 | I98: =IF(AND(G98>=2018,MOD(G98,3)=0),G98-2,"Invalid closing year") -> Invalid closing year
G99: 2096 | H99: 2095 | I99: =G99-3 -> 2093
G100: 2097 | H100: 2096 | I100: Invalid closing year
G101: 2098 | H101: 2097 | I101: =IF(AND(G101>=2018,MOD(G101,3)=0),G101-2,"Invalid closing year") -> Invalid closing year
G102: 2099 | H102: 2098 | I102: =G102-3 -> 2096
G103: 2100 | H103: 2099 | I103: Invalid closing year

Sheet Locks (hidden)
A1: Sheet Name | B1: Top Left Cell | C1: Bottom Right Cell | D1: Row Step | E1: Column Step | F1: Lock Type | G1: Focus Back To
A2: Table 1 (Level 1 + 2) | B2: G13 | C2: S13 | D2: 999 | E2: 4 | F2: Formulas | G2: G8
A3: Table 1 (Level 1 + 2) | B3: G20 | C3: S20 | D3: 999 | E3: 4 | F3: Formulas | G3: G8
A4: Table 1 (Level 1 + 2) | B4: G23 | C4: S23 | D4: 999 | E4: 4 | F4: Formulas | G4: G8
A5: Table 1 (Level 1 + 2) | B5: G30 | C5: S30 | D5: 999 | E5: 4 | F5: Formulas | G5: G8
A6: Table 1 (Level 1 + 2) | B6: G34 | C6: S34 | D6: 999 | E6: 4 | F6: Formulas | G6: G8
A7: Table 1 (Level 1 + 2) | B7: G38 | C7: S38 | D7: 999 | E7: 4 | F7: Formulas | G7: G8
A8: Table 1 (Level 1 + 2) | B8: G41 | C8: S41 | D8: 999 | E8: 4 | F8: Formulas | G8: G8
A9: Table 1 (Level 1 + 2) | B9: G44 | C9: S44 | D9: 999 | E9: 4 | F9: Formulas | G9: G8
A10: Table 1 (Level 1 + 2) | B10: G48 | C10: S48 | D10: 999 | E10: 4 | F10: Formulas | G10: G8
A11: Table 1 (Level 1 + 2) | B11: G52 | C11: S52 | D11: 999 | E11: 4 | F11: Formulas | G11: G8
A12: Table 1 (Level 1 + 2) | B12: G57 | C12: S57 | D12: 999 | E12: 4 | F12: Formulas | G12: G8
A13: Table 1 (Level 1 + 2) | B13: G68 | C13: S69 | D13: 1 | E13: 4 | F13: Formulas | G13: G8
A14: Table 1 (Level 1 + 2) | B14: W8 | C14: W69 | D14: 1 | E14: 999 | F14: Formulas | G14: G8

Sheet MustNotBeNegative (hidden)
A1: Severity | B1: SheetName | C1: TopLeftCell | D1: BottomRightCell | E1: RowStep | F1: ColumnStep
A2: Error | B2: Table 1 (Level 1 + 2) | C2: G8 | D2: S69 | E2: 1 | F2: 4
A3: Error | B3: Table 2 (Conversion matrix) | C3: G11 | D3: S23 | E3: 999 | F3: 1

Sheet IsNumeric (hidden)
A1: Severity | B1: SheetName | C1: TopLeftCell | D1: BottomRightCell | E1: RowStep | F1: ColumnStep
A2: Error | B2: Table 1 (Level 1 + 2) | C2: G8 | D2: W69 | E2: 1 | F2: 4
A3: Error | B3: Table 2 (Conversion matrix) | C3: H11 | D3: S11 | E3: 999 | F3: 1
A4: Error | B4: Table 2 (Conversion matrix) | C4: I12 | D4: S12 | E4: 999 | F4: 1
A5: Error | B5: Table 2 (Conversion matrix) | C5: J13 | D5: S13 | E5: 999 | F5: 1
A6: Error | B6: Table 2 (Conversion matrix) | C6: K14 | D6: S14 | E6: 999 | F6: 1
A7: Error | B7: Table 2 (Conversion matrix) | C7: L15 | D7: S15 | E7: 999 | F7: 1
A8: Error | B8: Table 2 (Conversion matrix) | C8: M16 | D8: S16 | E8: 999 | F8: 1
A9: Error | B9: Table 2 (Conversion matrix) | C9: N17 | D9: S17 | E9: 999 | F9: 1
A10: Error | B10: Table 2 (Conversion matrix) | C10: O18 | D10: S18 | E10: 999 | F10: 1
A11: Error | B11: Table 2 (Conversion matrix) | C11: P19 | D11: S19 | E11: 999 | F11: 1
A12: Error | B12: Table 2 (Conversion matrix) | C12: Q20 | D12: S20 | E12: 999 | F12: 1
A13: Error | B13: Table 2 (Conversion matrix) | C13: R21 | D13: S21 | E13: 999 | F13: 1
A14: Error | B14: Table 2 (Conversion matrix) | C14: G12 | D14: G12 | E14: 999 | F14: 999
A15: Error | B15: Table 2 (Conversion matrix) | C15: G13 | D15: H13 | E15: 999 | F15: 1
A16: Error | B16: Table 2 (Conversion matrix) | C16: G14 | D16: I14 | E16: 999 | F16: 1
A17: Error | B17: Table 2 (Conversion matrix) | C17: G15 | D17: J15 | E17: 999 | F17: 1
A18: Error | B18: Table 2 (Conversion matrix) | C18: G16 | D18: K16 | E18: 999 | F18: 1
A19: Error | B19: Table 2 (Conversion matrix) | C19: G17 | D19: L17 | E19: 999 | F19: 1
A20: Error | B20: Table 2 (Conversion matrix) | C20: G18 | D20: M18 | E20: 999 | F20: 1
A21: Error | B21: Table 2 (Conversion matrix) | C21: G19 | D21: N19 | E21: 999 | F21: 1
A22: Error | B22: Table 2 (Conversion matrix) | C22: G20 | D22: O20 | E22: 999 | F22: 1
A23: Error | B23: Table 2 (Conversion matrix) | C23: G21 | D23: P21 | E23: 999 | F23: 1
A24: Error | B24: Table 2 (Conversion matrix) | C24: G22 | D24: Q22 | E24: 999 | F24: 1
A25: Error | B25: Table 2 (Conversion matrix) | C25: G23 | D25: S23 | E25: 999 | F25: 1

Sheet Summations (hidden)
A1: Severity | B1: Sheet Name | C1: List of Cells (first block) | D1: First Total Cell (first block) | E1: Last Total Cell (Last block) | F1: Row Block Repetition Step | G1: Column Block Repetition Step | H1: Greater or Equal | I1: Valid Tolerance | J1: Only if all data is available | K1: Non compliance Is Valid If Footnote Exists | L1: Footnote Shift From Value | M1: Display text in error
A2: Error | B2: Table 1 (Level 1 + 2) | C2: G8,G9,G10,G11,G12 | D2: G13 | E2: W13 | F2: 999 | G2: 12 | H2: EQ | I2: 0.1 | J2: YES | K2: NO | L2: 3 | M2: Total ecosystems at level 1 must be equal to the sum of the subcomponents at level 2
A3: Error | B3: Table 1 (Level 1 + 2) | C3: G14,G15,G16,G17,G18,G19 | D3: G20 | E3: W20 | F3: 999 | G3: 12 | H3: EQ | I3: 0.1 | J3: YES | K3: NO | L3: 3 | M3: Total ecosystems at level 1 must be equal to the sum of the subcomponents at level 2
A4: Error | B4: Table 1 (Level 1 + 2) | C4: G21,G22 | D4: G23 | E4: W23 | F4: 999 | G4: 12 | H4: EQ | I4: 0.1 | J4: YES | K4: NO | L4: 3 | M4: Total ecosystems at level 1 must be equal to the sum of the subcomponents at level 2
A5: Error | B5: Table 1 (Level 1 + 2) | C5: G24,G25,G26,G27,G28,G29 | D5: G30 | E5: W30 | F5: 999 | G5: 12 | H5: EQ | I5: 0.1 | J5: YES | K5: NO | L5: 3 | M5: Total ecosystems at level 1 must be equal to the sum of the subcomponents at level 2
A6: Error | B6: Table 1 (Level 1 + 2) | C6: G31,G32,G33 | D6: G34 | E6: W38 | F6: 4 | G6: 12 | H6: EQ | I6: 0.1 | J6: YES | K6: NO | L6: 3 | M6: Total ecosystems at level 1 must be equal to the sum of the subcomponents at level 2
A7: Error | B7: Table 1 (Level 1 + 2) | C7: G39,G40 | D7: G41 | E7: W44 | F7: 3 | G7: 12 | H7: EQ | I7: 0.1 | J7: YES | K7: NO | L7: 3 | M7: Total ecosystems at level 1 must be equal to the sum of the subcomponents at level 2
A8: Error | B8: Table 1 (Level 1 + 2) | C8: G45,G46,G47 | D8: G48 | E8: W52 | F8: 4 | G8: 12 | H8: EQ | I8: 0.1 | J8: YES | K8: NO | L8: 3 | M8: Total ecosystems at level 1 must be equal to the sum of the subcomponents at level 2
A9: Error | B9: Table 1 (Level 1 + 2) | C9: G53,G54,G55,G56 | D9: G57 | E9: W57 | F9: 999 | G9: 12 | H9: EQ | I9: 0.1 | J9: YES | K9: NO | L9: 3 | M9: Total ecosystems at level 1 must be equal to the sum of the subcomponents at level 2
A10: Error | B10: Table 1 (Level 1 + 2) | C10: G58,G59,G60,G61,G62,G63,G64,G65,G66,G67 | D10: G68 | E10: W58 | F10: 999 | G10: 12 | H10: EQ | I10: 0.1 | J10: YES | K10: NO | L10: 3 | M10: Total ecosystems at level 1 must be equal to the sum of the subcomponents at level 2
A11: Error | B11: Table 1 (Level 1 + 2) | C11: G13,G20,G23,G30,G34,G38,G41,G44,G48,G52,G57,G68 | D11: G69 | E11: W69 | F11: 999 | G11: 12 | H11: EQ | I11: 0.1 | J11: YES | K11: NO | L11: 3 | M11: TOTAL must be the sum of all 12 ecosystem types
A12: Error | B12: Table 1 (Level 1 + 2) | C12: G8,G9,G10,G11,G12 | D12: G13 | E12: W13 | F12: 999 | G12: 12 | H12: GE | I12: 0.1 | J12: NO | K12: NO | L12: 3 | M12: Total ecosystems at level 1 must be greater or equal to the sum of the subcomponents at level 2
A13: Error | B13: Table 1 (Level 1 + 2) | C13: G14,G15,G16,G17,G18,G19 | D13: G20 | E13: W20 | F13: 999 | G13: 12 | H13: GE | I13: 0.1 | J13: NO | K13: NO | L13: 3 | M13: Total ecosystems at level 1 must be greater or equal to the sum of the subcomponents at level 2
A14: Error | B14: Table 1 (Level 1 + 2) | C14: G21,G22 | D14: G23 | E14: W23 | F14: 999 | G14: 12 | H14: GE | I14: 0.1 | J14: NO | K14: NO | L14: 3 | M14: Total ecosystems at level 1 must be greater or equal to the sum of the subcomponents at level 2
A15: Error | B15: Table 1 (Level 1 + 2) | C15: G24,G25,G26,G27,G28,G29 | D15: G30 | E15: W30 | F15: 999 | G15: 12 | H15: GE | I15: 0.1 | J15: NO | K15: NO | L15: 3 | M15: Total ecosystems at level 1 must be greater or equal to the sum of the subcomponents at level 2
A16: Error | B16: Table 1 (Level 1 + 2) | C16: G31,G32,G33 | D16: G34 | E16: W38 | F16: 4 | G16: 12 | H16: GE | I16: 0.1 | J16: NO | K16: NO | L16: 3 | M16: Total ecosystems at level 1 must be greater or equal to the sum of the subcomponents at level 2
A17: Error | B17: Table 1 (Level 1 + 2) | C17: G39,G40 | D17: G41 | E17: W44 | F17: 3 | G17: 12 | H17: GE | I17: 0.1 | J17: NO | K17: NO | L17: 3 | M17: Total ecosystems at level 1 must be greater or equal to the sum of the subcomponents at level 2
A18: Error | B18: Table 1 (Level 1 + 2) | C18: G45,G46,G47 | D18: G48 | E18: W52 | F18: 4 | G18: 12 | H18: GE | I18: 0.1 | J18: NO | K18: NO | L18: 3 | M18: Total ecosystems at level 1 must be greater or equal to the sum of the subcomponents at level 2
A19: Error | B19: Table 1 (Level 1 + 2) | C19: G53,G54,G55,G56 | D19: G57 | E19: W57 | F19: 999 | G19: 12 | H19: GE | I19: 0.1 | J19: NO | K19: NO | L19: 3 | M19: Total ecosystems at level 1 must be greater or equal to the sum of the subcomponents at level 2
A20: Error | B20: Table 1 (Level 1 + 2) | C20: G58,G59,G60,G61,G62,G63,G64,G65,G66,G67 | D20: G68 | E20: W58 | F20: 999 | G20: 12 | H20: GE | I20: 0.1 | J20: NO | K20: NO | L20: 3 | M20: Total ecosystems at level 1 must be greater or equal to the sum of the subcomponents at level 2
A21: Error | B21: Table 1 (Level 1 + 2) | C21: G13,G20,G23,G30,G34,G38,G41,G44,G48,G52,G57,G68 | D21: G69 | E21: W69 | F21: 999 | G21: 12 | H21: GE | I21: 0.1 | J21: NO | K21: NO | L21: 3 | M21: TOTAL must be the sum of all 12 ecosystem types
A22: Error | B22: Table 2 (Conversion matrix) | C22: G11,G12,G13,G14,G15,G16,G17,G18,G19,G20,G21,G22 | D22: G23 | E22: R23 | F22: 999 | G22: 1 | H22: EQ | I22: 1 | J22: YES | K22: NO | L22: 3 | M22: TOTAL ADDITIONS must be equal to the sum of additions
A23: Error | B23: Table 2 (Conversion matrix) | C23: G11,H11,I11,J11,K11,L11,M11,N11,O11,P11,Q11,R11 | D23: S11 | E23: S22 | F23: 1 | G23: 999 | H23: EQ | I23: 1 | J23: YES | K23: NO | L23: 3 | M23: TOTAL REDUCTIONS must be equal to the sum of reductions
A24: Error | B24: Table 2 (Conversion matrix) | C24: G26 | D24: G23 | E24: R23 | F24: 999 | G24: 1 | H24: EQ | I24: 1000 | J24: NO | K24: NO | L24: 3 | M24: TOTAL ADDITIONS in Table 2 for a given ecosystem type must be close to additions at level 1 in Table 1
A25: Error | B25: Table 2 (Conversion matrix) | C25: T11 | D25: S11 | E25: S22 | F25: 1 | G25: 999 | H25: EQ | I25: 1000 | J25: NO | K25: NO | L25: 3 | M25: TOTAL REDUCTIONS in Table 2 for a given ecosystem type must be close to reductions at level 1 in Table 1
A27: Error | B27: Table 1 (Level 1 + 2) | C27: G8,G9,G10,G11,G12 | D27: G13 | E27: W13 | F27: 999 | G27: 4 | H27: GE | I27: 0.1 | J27: YES | K27: NO | L27: 3 | M27: Total ecosystems at level 1 must be greater or equal to the sum of the subcomponents at level 2
A28: Error | B28: Table 1 (Level 1 + 2) | C28: G14,G15,G16,G17,G18,G19 | D28: G20 | E28: W20 | F28: 999 | G28: 4 | H28: GE | I28: 0.1 | J28: YES | K28: NO | L28: 3 | M28: Total ecosystems at level 1 must be greater or equal to the sum of the subcomponents at level 2
A29: Error | B29: Table 1 (Level 1 + 2) | C29: G21,G22 | D29: G23 | E29: W23 | F29: 999 | G29: 4 | H29: GE | I29: 0.1 | J29: YES | K29: NO | L29: 3 | M29: Total ecosystems at level 1 must be greater or equal to the sum of the subcomponents at level 2
A30: Error | B30: Table 1 (Level 1 + 2) | C30: G24,G25,G26,G27,G28,G29 | D30: G30 | E30: W30 | F30: 999 | G30: 4 | H30: GE | I30: 0.1 | J30: YES | K30: NO | L30: 3 | M30: Total ecosystems at level 1 must be greater or equal to the sum of the subcomponents at level 2
A31: Error | B31: Table 1 (Level 1 + 2) | C31: G31,G32,G33 | D31: G34 | E31: W38 | F31: 4 | G31: 4 | H31: GE | I31: 0.1 | J31: YES | K31: NO | L31: 3 | M31: Total ecosystems at level 1 must be greater or equal to the sum of the subcomponents at level 2
A32: Error | B32: Table 1 (Level 1 + 2) | C32: G39,G40 | D32: G41 | E32: W44 | F32: 3 | G32: 4 | H32: GE | I32: 0.1 | J32: YES | K32: NO | L32: 3 | M32: Total ecosystems at level 1 must be greater or equal to the sum of the subcomponents at level 2
A33: Error | B33: Table 1 (Level 1 + 2) | C33: G45,G46,G47 | D33: G48 | E33: W52 | F33: 4 | G33: 4 | H33: GE | I33: 0.1 | J33: YES | K33: NO | L33: 3 | M33: Total ecosystems at level 1 must be greater or equal to the sum of the subcomponents at level 2
A34: Error | B34: Table 1 (Level 1 + 2) | C34: G53,G54,G55,G56 | D34: G57 | E34: W57 | F34: 999 | G34: 4 | H34: GE | I34: 0.1 | J34: YES | K34: NO | L34: 3 | M34: Total ecosystems at level 1 must be greater or equal to the sum of the subcomponents at level 2
A35: Error | B35: Table 1 (Level 1 + 2) | C35: G58,G59,G60,G61,G62,G63,G64,G65,G66,G67 | D35: G68 | E35: W58 | F35: 999 | G35: 4 | H35: GE | I35: 0.1 | J35: YES | K35: NO | L35: 3 | M35: Total ecosystems at level 1 must be greater or equal to the sum of the subcomponents at level 2
A36: Error | B36: Table 1 (Level 1 + 2) | C36: G13,G20,G23,G30,G34,G38,G41,G44,G48,G52,G57,G68 | D36: G69 | E36: W69 | F36: 999 | G36: 4 | H36: GE | I36: 0.1 | J36: YES | K36: NO | L36: 3 | M36: TOTAL must be the sum of all 12 ecosystems
F39: Must be > 0 for a not relevant dimension. Else you get an infinite loop | H39: EQ or GE or GT | I39: GT does not admit Tolerance | J39: NO or YES | L39: Not Applicable if the previous column is "NO"
A41: DESCRIPTION
A42: This sheet is meant to define the validation for summations in a row or in a column.
A43: - A block is defined as a sequence of addendums in the same row or column
A44: - Only the first block must be explicitly defined
A45: - The block can be repeated at regular patterns through rows and columns at the same time
A48: PARAMETRES
A49: SheetName | C49: Name of the sheet to be validated (e.g. Table 1)
A50: List of Cells (first block) | C50: First cell in the first block to be validated
A51: First TotalCell (first block)
A52: Last TotalCell (Last block)
A53: Row Block Repetition Step
A54: Column Block Repetition Step
A55: Greater or Equal
A56: Valid Threshold
A57: Only if all data is available
A58: Display text in error | C58: Valid values: EQ (Strictly equal); GE (Greater or Equal); GT (Strictly greater - No threshold will be considered)

Sheet Mandatory (hidden)
A1: Severity | B1: SheetName | C1: Top Left Cell | D1: Bottom Right Cell | E1: Row Step | F1: Column Step | G1: Empty Is Valid If Footnote Exists | H1: Footnote Shift From Value
A2: Error | B2: GETTING STARTED | C2: E9 | D2: E13 | E2: 2 | F2: 999 | G2: NO | H2: 999
A3: Error | B3: GETTING STARTED | C3: D19 | D3: D19 | E3: 999 | F3: 999 | G3: NO | H3: 999
A4: Error | B4: GETTING STARTED | C4: D27 | D4: D27 | E4: 999 | F4: 999 | G4: NO | H4: 999
A5: Warning | B5: Table 1 (Level 1 + 2) | C5: G13 | D5: S13 | E5: 999 | F5: 4 | G5: NO | H5: 999
A6: Warning | B6: Table 1 (Level 1 + 2) | C6: G20 | D6: S20 | E6: 999 | F6: 4 | G6: NO | H6: 999
A7: Warning | B7: Table 1 (Level 1 + 2) | C7: G23 | D7: S23 | E7: 999 | F7: 4 | G7: NO | H7: 999
A8: Warning | B8: Table 1 (Level 1 + 2) | C8: G30 | D8: S30 | E8: 999 | F8: 4 | G8: NO | H8: 999
A9: Warning | B9: Table 1 (Level 1 + 2) | C9: G34 | D9: S34 | E9: 999 | F9: 4 | G9: NO | H9: 999
A10: Warning | B10: Table 1 (Level 1 + 2) | C10: G38 | D10: S38 | E10: 999 | F10: 4 | G10: NO | H10: 999
A11: Warning | B11: Table 1 (Level 1 + 2) | C11: G41 | D11: S41 | E11: 999 | F11: 4 | G11: NO | H11: 999
A12: Warning | B12: Table 1 (Level 1 + 2) | C12: G44 | D12: S44 | E12: 999 | F12: 4 | G12: NO | H12: 999
A13: Warning | B13: Table 1 (Level 1 + 2) | C13: G48 | D13: S48 | E13: 999 | F13: 4 | G13: NO | H13: 999
A14: Warning | B14: Table 1 (Level 1 + 2) | C14: G52 | D14: S52 | E14: 999 | F14: 4 | G14: NO | H14: 999
A15: Warning | B15: Table 1 (Level 1 + 2) | C15: G57 | D15: S57 | E15: 999 | F15: 4 | G15: NO | H15: 999
A16: Warning | B16: Table 1 (Level 1 + 2) | C16: G68 | D16: S68 | E16: 999 | F16: 4 | G16: NO | H16: 999
A17: Warning | B17: Table 2 (Conversion matrix) | C17: H11 | D17: R11 | E17: 999 | F17: 1 | G17: NO | H17: 999
A18: Warning | B18: Table 2 (Conversion matrix) | C18: I12 | D18: R12 | E18: 999 | F18: 1 | G18: NO | H18: 999
A19: Warning | B19: Table 2 (Conversion matrix) | C19: J13 | D19: R13 | E19: 999 | F19: 1 | G19: NO | H19: 999
A20: Warning | B20: Table 2 (Conversion matrix) | C20: K14 | D20: R14 | E20: 999 | F20: 1 | G20: NO | H20: 999
A21: Warning | B21: Table 2 (Conversion matrix) | C21: L15 | D21: R15 | E21: 999 | F21: 1 | G21: NO | H21: 999
A22: Warning | B22: Table 2 (Conversion matrix) | C22: M16 | D22: R16 | E22: 999 | F22: 1 | G22: NO | H22: 999
A23: Warning | B23: Table 2 (Conversion matrix) | C23: N17 | D23: R17 | E23: 999 | F23: 1 | G23: NO | H23: 999
A24: Warning | B24: Table 2 (Conversion matrix) | C24: O18 | D24: R18 | E24: 999 | F24: 1 | G24: NO | H24: 999
A25: Warning | B25: Table 2 (Conversion matrix) | C25: P19 | D25: R19 | E25: 999 | F25: 1 | G25: NO | H25: 999
A26: Warning | B26: Table 2 (Conversion matrix) | C26: Q20 | D26: R20 | E26: 999 | F26: 1 | G26: NO | H26: 999
A27: Warning | B27: Table 2 (Conversion matrix) | C27: R21 | D27: R21 | E27: 999 | F27: 1 | G27: NO | H27: 999
A28: Warning | B28: Table 2 (Conversion matrix) | C28: G12 | D28: G12 | E28: 999 | F28: 999 | G28: NO | H28: 999
A29: Warning | B29: Table 2 (Conversion matrix) | C29: G13 | D29: H13 | E29: 999 | F29: 1 | G29: NO | H29: 999
A30: Warning | B30: Table 2 (Conversion matrix) | C30: G14 | D30: I14 | E30: 999 | F30: 1 | G30: NO | H30: 999
A31: Warning | B31: Table 2 (Conversion matrix) | C31: G15 | D31: J15 | E31: 999 | F31: 1 | G31: NO | H31: 999
A32: Warning | B32: Table 2 (Conversion matrix) | C32: G16 | D32: K16 | E32: 999 | F32: 1 | G32: NO | H32: 999
A33: Warning | B33: Table 2 (Conversion matrix) | C33: G17 | D33: L17 | E33: 999 | F33: 1 | G33: NO | H33: 999
A34: Warning | B34: Table 2 (Conversion matrix) | C34: G18 | D34: M18 | E34: 999 | F34: 1 | G34: NO | H34: 999
A35: Warning | B35: Table 2 (Conversion matrix) | C35: G19 | D35: N19 | E35: 999 | F35: 1 | G35: NO | H35: 999
A36: Warning | B36: Table 2 (Conversion matrix) | C36: G20 | D36: O20 | E36: 999 | F36: 1 | G36: NO | H36: 999
A37: Warning | B37: Table 2 (Conversion matrix) | C37: G21 | D37: P21 | E37: 999 | F37: 1 | G37: NO | H37: 999
A38: Warning | B38: Table 2 (Conversion matrix) | C38: G22 | D38: Q22 | E38: 999 | F38: 1 | G38: NO | H38: 999

Sheet Table 3 (Level 3) (hidden)
A1: Table 3 - Ecosystem extent accounts level 3 only
A2: Reporting unit = | D2: 1000 ha
A3: Reference year =
A4: Previous reference year =
A5: Items in bold are mandatory to be reported.
A7: EU ecosystem typology: level 1 | B7: EU ecosystem typology: level 2 | C7: EU Ecosystem typology: level 3 | D7: Opening area (Extent in the previous reference year) | E7: Additions | F7: Reductions | G7: Net changes (additions less reductions; +/-) | H7: Closing area (Extent in the current reference year)
A8: 1. Settlements and other artificial areas | B8: 1.1 Continuous settlement area | C8: 1.1.1 Continuous residential area
C9: 1.1.2 Continuous commercial and industrial area
B10: 1.2 Discontinuous settlement area | C10: 1.2.1 Discontinuous residential area
C11: 1.2.2 Discontinuous commercial and industrial area
B12: 1.3 Infrastructure | C12: 1.3.1 Road and rail networks and associated land
C13: 1.3.2 Port areas
C14: 1.3.3 Airports
C15: 1.3.4 Other infrastructure (e.g. water purification plants, energy plants, transforming stations).
C16: 1.3.5 Mineral extraction sites (excluding peat extraction sites, see 7.3.1)
C17: 1.3.6 Dump areas
C18: 1.3.7 Construction sites
B19: 1.4 Urban greenspace | C19: 1.4.1 Parks (including Zoos and botanical gardens)
C20: 1.4.2 Sports and recreation sites
C21: 1.4.3 Other urban green
B22: 1.5 Other artificial areas | C22: 1.5.1. Permanent greenhouses
C23: 1.5.2 Cemeteries
C24: 1.5.3 Archaeological sites
C25: 1.5.4 Urban blue
A26: 2. Cropland | B26: 2.1 Annual cropland | C26: 2.1.1 Cereals excluding rice (C1000) excluding maize (C1500)
C27: 2.1.2 Maize (C1500 + G3000)
C28: 2.1.3 Dry pulses and protein crops (P0000)
C29: 2.1.4 Root crops (R0000)
C30: 2.1.5 Vegetables (including melons) and strawberries (V0000_S0000)
C31: 2.1.6 Industrial crops including annual bioenergy crops (I0000)
C32: 2.1.7 Flowers and ornamental plants (N0000)
C33: 2.1.8 Fallow land (Q0000)
C34: 2.1.9 Temporary grasses and grazing areas (G1000)
C35: 2.1.10 Other crops (further categories may be added by Member States, depending upon nationally important crop types).
B36: 2.2 Rice fields | C36: 2.2.1 Rice fields (C2000)
B37: 2.3 Permanent crops | C37: 2.3.1 Olives (O1000)
C38: 2.3.2 Grapes (W1000)
C39: 2.3.3 Pome fruits (F1100)
C40: 2.3.4 Stone fruits (F1200)
C41: 2.3.5 Berries excluding strawberries (F3000)
C42: 2.3.6 Citrus fruits (T1000)
C43: 2.3.7 Nuts (F4000)
C44: 2.3.8 Other perennial crops and orchards
B45: 2.4 Agro-forestry areas | C45: 2.4.1 Holm and cork oak forests
C46: 2.4.2 Other agro-forestry areas
B47: 2.5 Mixed farmland | C47: 2.5.1 Mosaic farmland (comprising cropland, grassland and (semi-)natural components)
B48: 2.6 Other farmland | C48: 2.6.1 Nurseries
C49: 2.6.2 Christmas tree plantations
C50: 2.6.3 Perennial bioenergy crops
A51: 3. Grassland (pastures, semi-natural and natural grasslands) | B51: 3.1 Sown pastures and fields (modified grasslands) | C51: 3.1.1 Sown pastures used for grazing
C52: 3.1.2 Sown grassland mown frequently for fodder or silage
B53: 3.2 Natural and semi-natural grasslands | C53: 3.2.1 Dry grasslands
C54: 3.2.2 Seasonally wet and wet grasslands
C55: 3.2.3 Alpine and subalpine grasslands
C56: 3.2.4 Woodland fringes and clearings and tall forb stands
C57: 3.2.5 Inland salt steppes
C58: 3.2.6 Sparsely wooded grasslands
C59: 3.2.7 Mesophilous extensive grassland
A60: 4. Forest and woodlands | B60: 4.1 Broadleaved deciduous forest | C60: 4.1.1 Riparian forest and woodland
C61: 4.1.2 Broadleaved swamp woodland on non-acid and acid
C62: peat
C63: 4.1.3 Fagus dominated forest
C64: 4.1.4 Submediterranean and Mediterranean thermophilous deciduous forest
C65: 4.1.5 Acidophilous [Quercus]-
C66: dominated woodland
C67: 4.1.6 Temperate and boreal and Southern European Betula and Populus tremula forest on mineral soils
C68: 4.1.7 Other broadleaved deciduous forest, excluding highly-modified plantations
C69: 4.1.8 Highly modified broadleaved deciduous forests including stands of non-native trees species that have long been established in European ecosystems stands
B70: 4.2 Coniferous forests | C70: 4.2.1 Boreal and temperate fir and spruce forest
C71: 4.2.2 Mediterranean mountain fir and spruce forest
C72: 4.2.3 Temperate subalpine Larix, Pinus cembra and Pinus uncinata forest
C73: 4.2.4 Pine forest (excluding mires, non-thermophilous)
C74: 4.2.5 Mediterranean thermophilous lowland pine forest
C75: 4.2.6 Spruce, pine and larch mire forest
C76: 4.2.7 Taiga forests
C77: 4.2.8 Other coniferous forests, excluding plantations
C78: 4.2.9 Highly modified coniferous forests including stands of non-native trees species that have long been established in European ecosystems stands
B79: 4.3 Broadleaved evergreen forest | C79: 4.3.1 Mediterranean evergreen Quercus forest
C80: 4.3.2 Mainland laurophyllous forest
C81: 4.3.3 Macaronesian laurophyllous forest
C82: 4.3.4 Olea europaea-Ceratonia siliqua forest
C83: 4.3.5 Palm groves
C84: 4.3.6 Other broadleaved evergreen forests
C85: 4.3.7 Highly modified broadleaved evergreen forests including stands of non-native trees species that have long been established in European ecosystems stands
B86: 4.4 Mixed forests | C86: 4.4.1 Mixed forests dominated by coniferous species
C87: 4.4.2 Mixed forests dominated by broadleaved species
C88: 4.4.3 Other mixed forests including stands of non-native trees species that have long been established in European ecosystems stands
B89: 4.5 Transitional forest and woodland shrub | C89: 4.5.1 Transitional woodland/forest land
B90: 4.6 Plantations | C90: 4.6.1 Monoculture plantations of non-native tree species (note: forest stands of single or mixed species consisting of native and/or non-native trees species that have long been established in European ecosystems and have diverse undergrowth typical for forest ecosystems should be classified as part of types 4.1 to 4.4)
A91: 5. Heathland and shrub | B91: 5.1 Tundra | C91: 5.1.1 Tundra
B92: 5.2 Heathland and (sub-) alpine shrub | C92: 5.2.1 Arctic alpine, subalpine and lowland shrub and heathland
C93: 5.2.2 Temperate and Mediterranean montane and hilly shrub and heathland
C94: 5.2.3 Temperate and Mediterranean lowland shrub and heathland
B95: 5.3 Sclerophyllous vegetation | C95: 5.3.1 Maquis, arborescent matorral and thermo-Mediterranean shrub;
C96: 5.3.2 Garrigue;
C97: 5.3.3 Spiny Mediterranean heaths (phrygana, hedgehog-heaths & coastal cliff vegetation);
C98: 5.3.4 Thermo-Atlantic xerophytic shrub (Madeira and Canary Islands)
A99: 6. Sparsely vegetated ecosystems | B99: 6.1 Bare rocks | C99: 6.1.1 Rocky pavements, outcrops, and screes
C100: 6.1.2 Lava flows
B101: 6.2 Semi-desert, desert and other sparsely vegetated areas | C101: 6.2.1 Semi-desert steppes
C102: 6.2.2 Cool deserts and semi-desert steppes
C103: 6.2.3 Other sparsely vegetated areas
B104: 6.3 Ice sheets, glaciers and perennial snowfields | C104: 6.3.1 Ice sheets, glaciers and perennial snowfields
A105: 7. Inland wetlands | B105: 7.1 Inland marshes on mineral soil | C105: 7.1.1 Reedbeds
C106: 7.1.2 Inland salt marshes
C107: 7.1.3 Other marshland and water-fringing ecosystems
B108: 7.2 Mires, bogs and fens | C108: 7.2.1 Raised bogs
C109: 7.2.2 Blanket bogs
C110: 7.2.3 Valley mires, poor fens and transition mires
C111: 7.2.4 Aapa, palsa and polygon mires
C112: 7.2.5 Base-rich fens and calcareous spring mires
C113: 7.2.6 Peat extraction sites
A114: 8. Rivers and canals | B114: 8.1 Rivers | C114: 8.1.1 Rivers
B115: 8.2 Canals, ditches and drains | C115: 8.2.1 Canals, ditches and drains
A116: 9. Lakes and reservoirs | B116: 9.1 Lakes | C116: 9.1.1 Lakes
B117: 9.2 Artificial reservoirs | C117: 9.2.1 Artificial reservoirs
B118: 9.3 Geothermal pools and wetlands (Iceland) | C118: 9.3.1 Geothermal pools and wetlands (Iceland)
A119: 10. Marine inlets and transitional waters | B119: 10.1 Coastal lagoons | C119: 10.1.1 Coastal lagoons
B120: 10.2 Estuaries and bays | C120: 10.2.1 Estuaries and bays
B121: 10.3 Intertidal flats | C121: 10.3.1 Intertidal flats (e.g., Wadden Sea)
B122: 10.4 Deepwater coastal inlets (fjords) | C122: 10.4.1 Deepwater coastal inlets (fjords)
A123: 11. Coastal beaches, dunes and wetlands | B123: 11.1 Artificial shorelines | C123: 11.1.1 Artificial shorelines
B124: 11.2 Coastal dunes, beaches and sandy and muddy shores | C124: 11.2.1 Coastal dunes
C125: 11.2.2 Beaches and sandy shores
C126: 11.2.3 Muddy shores
B127: 11.3 Rocky shores | C127: 11.3.1 Coastal shingle
C128: 11.3.2 Rock cliffs, ledges and shores
B129: 11.4 Coastal saltmarshes and salines | C129: 11.4.1 Coastal saltmarshes
C130: 11.4.2 Salines
A131: 12. Marine ecosystems | B131: 12.1 Marine macrophytes | C131: 12.1.1 Kelp forests
C132: 12.1.2 Seagrass meadows
B133: 12.2 Coral reefs | C133: 12.2.1 Coral reefs
B134: 12.3 Shellfish beds and reefs | C134: 12.3.1 Shellfish beds and reefs
B135: 12.4 Subtidal sand beds and mud plains | C135: 12.4.1 Subtidal sand beds and mud plains
B137: 12.5 Subtidal rocky substrates | C137: 12.5.1 Subtidal rocky substrates
B138: 12.6 Continental and island slopes | C138: 12.6.1 Continental and island slopes
B139: 12.7 Deepwater benthic and pelagic ecosystems | C139: 12.7.1 Deepwater benthic and pelagic ecosystems
B140: 12.8 Sea ice | C140: 12.8.1 Sea ice
